fUSD/lending_fUSD_20240327
["ID","MTS","AMOUNT","RATE_DAILY","PERIOD"]
[320787386,1711555896082,-500.0,0.0005589,120]
[320787387,1711555896091,-605.69,0.0005589,120]
[320787388,1711555896102,-500.0,0.0005589,120]
[320787389,1711555896112,-500.0,0.0005589,120]
[320787390,1711555896123,-1457.69,0.0005589,120]
[320787391,1711555896135,-593.15,0.0005589,120]
[320787392,1711555896145,-500.0,0.0005589,120]
[320787393,1711555896155,-517.56,0.0005589,120]
[320787394,1711555896166,-1182.15,0.0005589,120]
[320787395,1711555896176,-500.0,0.0005589,120]
[320787396,1711555896186,-778.34,0.0005589,120]
[320787397,1711555896196,-825.5,0.0005589,120]
[320787398,1711555896207,-500.0,0.0005589,120]
[320787399,1711555896217,-2648.21,0.0005589,120]
[320787400,1711555896228,-1267.49,0.0005589,120]
[320787401,1711555896238,-500.0,0.0005589,120]
[320787402,1711555896250,-500.0,0.0005589,120]
[320787403,1711555896260,-839.35,0.0005589,120]
[320787404,1711555896270,-500.0,0.0005589,120]
[320787405,1711555896281,-290.0923775,0.0005589,120]
[320787406,1711555896292,-1135.8,0.0005589,120]
[320787407,1711555896303,-500.0,0.0005589,120]
[320787408,1711555896313,-541.72,0.0005589,120]
[320787409,1711555896323,-550.01,0.0005589,120]
[320787410,1711555896333,-500.0,0.0005589,120]
[320787411,1711555896343,-500.0,0.0005589,120]
[320787412,1711555896353,-1262.44,0.0005589,120]
[320787413,1711555896363,-500.0,0.0005589,120]
[320787414,1711555896373,-804.47,0.0005589,120]
[320787415,1711555896383,-500.0,0.0005589,120]
[320787416,1711555896393,-500.0,0.0005589,120]
[320787417,1711555896403,-1315.49,0.0005589,120]
[320787418,1711555896413,-804.61,0.0005589,120]
[320787419,1711555896423,-500.0,0.0005589,120]
[320787420,1711555896433,-680.65,0.0005589,120]
[320787421,1711555896443,-500.0,0.0005589,120]
[320787422,1711555896453,-500.0,0.0005589,120]
[320787423,1711555896463,-500.0,0.0005589,120]
[320787424,1711555896474,-500.0,0.0005589,120]
[320787425,1711555896484,-903.57,0.0005589,120]
[320787426,1711555896496,-1352.94,0.0005589,120]
[320787427,1711555896506,-500.0,0.0005589,120]
[320787428,1711555896517,-500.0,0.0005589,120]
[320787429,1711555896528,-500.0,0.0005589,120]
[320787430,1711555896538,-500.0,0.0005589,120]
[320787431,1711555896549,-635.82,0.0005589,120]
[320787432,1711555896560,-789.97,0.0005589,120]
[320787433,1711555896570,-624.13,0.0005589,120]
[320787434,1711555896581,-500.0,0.0005589,120]
[320787435,1711555896590,-500.0,0.0005589,120]
[320787436,1711555896601,-500.0,0.0005589,120]
[320787437,1711555896611,-500.0,0.0005589,120]
[320787438,1711555896622,-500.0,0.0005589,120]
[320787439,1711555896632,-500.0,0.0005589,120]
[320787440,1711555896642,-532.76,0.0005589,120]
[320787441,1711555896652,-165.17424422,0.0005589,120]
[320787442,1711555896662,-500.0,0.0005589,120]
[320787443,1711555896672,-500.0,0.0005589,120]
[320787444,1711555896682,-500.0,0.0005589,120]
[320787445,1711555896692,-672.68,0.0005589,30]
[320787446,1711555896702,-500.0,0.0005589,120]
[320787447,1711555896712,-500.0,0.0005589,120]
[320787448,1711555896721,-330.3,0.0005589,120]
[320787449,1711555896731,-500.0,0.0005589,120]
[320787450,1711555896743,-500.0,0.0005589,120]
[320787451,1711555896753,-716.44,0.0005589,120]
[320787452,1711555896764,-527.07,0.0005589,120]
[320787453,1711555896773,-500.0,0.0005589,120]
[320787454,1711555896783,-524.76,0.0005589,120]
[320787455,1711555896793,-500.0,0.0005589,120]
[320787456,1711555896803,-500.0,0.0005589,120]
[320787457,1711555896814,-500.0,0.0005589,120]
[320787458,1711555896823,-500.0,0.0005589,120]
[320787459,1711555896833,-1195.92,0.0005589,120]
[320787460,1711555896843,-804.62,0.0005589,120]
[320787461,1711555896853,-500.0,0.0005589,120]
[320787462,1711555896863,-500.0,0.0005589,120]
[320787463,1711555896872,-500.0,0.0005589,120]
[320787464,1711555896882,-632.15,0.0005589,120]
[320787465,1711555896891,-500.0,0.0005589,120]
[320787466,1711555896901,-634.49,0.0005589,120]
[320787467,1711555896911,-1171.88,0.0005589,120]
[320787468,1711555896924,-34816.52,0.0005589,120]
[320787469,1711555896934,-654.53,0.0005589,120]
[320787470,1711555896943,-500.0,0.0005589,120]
[320787471,1711555896953,-500.0,0.0005589,120]
[320787472,1711555896962,-1203.84,0.0005589,120]
[320787473,1711555896972,-500.0,0.0005589,120]
[320787474,1711555896981,-500.0,0.0005589,120]
[320787475,1711555896993,-500.0,0.0005589,120]
[320787476,1711555897004,-500.0,0.0005589,120]
[320787477,1711555897014,-691.32,0.0005589,120]
[320787478,1711555897024,-829.77,0.0005589,120]
[320787479,1711555897034,-5690.61,0.0005589,120]
[320787480,1711555897043,-500.0,0.0005589,120]
[320787481,1711555897053,-612.26,0.0005589,120]
[320787482,1711555897063,-500.0,0.0005589,120]
[320787483,1711555897073,-524.6,0.0005589,120]
[320787484,1711555897082,-500.0,0.0005589,120]
[320787485,1711555897092,-500.0,0.0005589,120]
[320787486,1711555897102,-1078.44,0.0005589,120]
[320787487,1711555897111,-500.0,0.0005589,120]
[320787488,1711555897121,-1263.56,0.0005589,120]
[320787489,1711555897133,-558.73,0.0005589,120]
[320787490,1711555897142,-500.0,0.0005589,120]
[320787491,1711555897152,-500.0,0.0005589,120]
[320787492,1711555897162,-500.0,0.0005589,120]
[320787493,1711555897173,-500.0,0.0005589,120]
[320787494,1711555897182,-514.15,0.0005589,120]
[320787495,1711555897191,-500.0,0.0005589,120]
[320787496,1711555897202,-518.04,0.0005589,120]
[320787497,1711555897212,-500.0,0.0005589,120]
[320787498,1711555897223,-1339.03,0.0005589,120]
[320787499,1711555897234,-500.0,0.0005589,120]
[320787500,1711555897246,-2819.83,0.0005589,120]
[320787501,1711555897257,-377.35,0.0005589,120]
[320787502,1711555897268,-500.0,0.0005589,120]
[320787503,1711555897278,-1021.97,0.0005589,120]
[320787504,1711555897288,-4237.53,0.0005589,120]
[320787505,1711555897299,-1392.63,0.0005589,120]
[320787506,1711555897309,-500.0,0.0005589,120]
[320787507,1711555897318,-500.0,0.0005589,120]
[320787508,1711555897328,-23692.63,0.0005589,120]
[320787509,1711555897338,-625.49,0.0005589,120]
[320787510,1711555897347,-500.0,0.0005589,120]
[320787511,1711555897357,-500.0,0.0005589,120]
[320787512,1711555897367,-691.69,0.0005589,120]
[320787513,1711555897376,-753.14,0.0005589,120]
[320787514,1711555897385,-227.13061413,0.0005589,120]
[320787515,1711555897395,-6105.13,0.0005589,120]
[320787516,1711555897404,-583.83,0.0005589,120]
[320787517,1711555897414,-659.64,0.0005589,120]
[320787518,1711555897424,-564.94,0.0005589,120]
[320787519,1711555897433,-910.28,0.0005589,120]
[320787520,1711555897442,-500.0,0.0005589,120]
[320787521,1711555897452,-2199.55,0.0005589,120]
[320787522,1711555897461,-520.74,0.0005589,120]
[320787523,1711555897471,-673.28,0.0005589,120]
[320787524,1711555897481,-5595.4,0.0005589,120]
[320787525,1711555897491,-569.2,0.0005589,120]
[320787526,1711555897503,-921.69,0.0005589,120]
[320787527,1711555897512,-744.21,0.0005589,120]
[320787528,1711555897521,-500.0,0.0005589,120]
[320787529,1711555897531,-500.0,0.0005589,120]
[320787530,1711555897540,-500.0,0.0005589,120]
[320787531,1711555897551,-551.59,0.0005589,120]
[320787532,1711555897561,-523.14,0.0005589,120]
[320787533,1711555897570,-3703.43,0.0005589,120]
[320787534,1711555897580,-1102.59,0.0005589,120]
[320787535,1711555897590,-500.0,0.0005589,120]
[320787536,1711555897599,-689.32,0.0005589,120]
[320787537,1711555897608,-500.0,0.0005589,120]
[320787538,1711555897618,-701.23,0.0005589,120]
[320787539,1711555897628,-2464.06,0.0005589,120]
[320787540,1711555897637,-15875.85,0.0005589,120]
[320787541,1711555897646,-500.0,0.0005589,120]
[320787542,1711555897656,-589.17,0.0005589,120]
[320787543,1711555897665,-500.0,0.0005589,120]
[320787544,1711555897675,-418.63,0.0005589,120]
[320787545,1711555897685,-1937.89,0.0005589,120]
[320787546,1711555897694,-500.0,0.0005589,120]
[320787547,1711555897703,-598.88,0.0005589,120]
[320787548,1711555897713,-1230.88,0.0005589,120]
[320787549,1711555897722,-2440.25,0.0005589,120]
[320787550,1711555897731,-1859.92,0.0005589,120]
[320787551,1711555897741,-930.82,0.0005589,120]
[320787552,1711555897752,-912.34,0.0005589,120]
[320787553,1711555897762,-1000.9,0.0005589,120]
[320787554,1711555897771,-769.7,0.0005589,120]
[320787555,1711555897781,-500.0,0.0005589,120]
[320787556,1711555897790,-2049.42,0.0005589,120]
[320787557,1711555897799,-500.0,0.0005589,120]
[320787558,1711555897809,-6420.03,0.0005589,120]
[320787559,1711555897819,-54111.41,0.0005589,120]
[320787560,1711555897829,-587.29,0.0005589,120]
[320787561,1711555897839,-500.0,0.0005589,120]
[320787562,1711555897848,-500.0,0.0005589,120]
[320787563,1711555897858,-500.0,0.0005589,120]
[320787564,1711555897867,-4144.22,0.0005589,120]
[320787565,1711555897876,-665.42,0.0005589,120]
[320787566,1711555897886,-983.43,0.0005589,120]
[320787567,1711555897895,-2706.27,0.0005589,120]
[320787568,1711555897906,-1571.18,0.0005589,120]
[320787569,1711555897916,-566.18,0.0005589,120]
[320787570,1711555897925,-2551.37,0.0005589,120]
[320787571,1711555897934,-500.0,0.0005589,120]
[320787572,1711555897944,-4754.25,0.0005589,120]
[320787573,1711555897954,-4872.03,0.0005589,120]
[320787574,1711555897964,-1087.19,0.0005589,120]
[320787575,1711555897973,-699.37,0.0005589,120]
[320787576,1711555897983,-2124.69,0.0005589,120]
[320787577,1711555897995,-500.0,0.0005589,120]
[320787578,1711555898006,-500.0,0.0005589,120]
[320787579,1711555898016,-966.35,0.0005589,120]
[320787580,1711555898026,-5561.81,0.0005589,120]
[320787581,1711555898036,-1284.1,0.0005589,120]
[320787582,1711555898045,-711.34,0.0005589,120]
[320787583,1711555898055,-2741.47,0.0005589,120]
[320787584,1711555898065,-500.0,0.0005589,120]
[320787585,1711555898074,-2598.47,0.0005589,120]
[320787586,1711555898084,-1876.3,0.0005589,120]
[320787587,1711555898094,-2280.26,0.0005589,120]
[320787588,1711555898104,-1429.9,0.0005589,120]
[320787589,1711555898114,-1391.61,0.0005589,120]
[320787590,1711555898123,-556.69,0.0005589,120]
[320787591,1711555898135,-704.02,0.0005589,120]
[320787592,1711555898145,-1140.85,0.0005589,120]
[320787593,1711555898155,-5917.63,0.0005589,120]
[320787594,1711555898164,-10580.92,0.0005589,120]
[320787595,1711555898174,-2509.99,0.0005589,120]
[320787596,1711555898184,-996.67,0.0005589,120]
[320787597,1711555898193,-552.78,0.0005589,120]
[320787598,1711555898205,-1442.1,0.0005589,120]
[320787599,1711555898215,-3750.14,0.0005589,120]
[320787600,1711555898224,-1480.07,0.0005589,120]
[320787601,1711555898234,-4030.03,0.0005589,120]
[320787602,1711555898246,-1488.27,0.0005589,120]
[320787603,1711555898256,-2545.5,0.0005589,120]
[320787604,1711555898266,-500.0,0.0005589,120]
[320787605,1711555898277,-2130.92,0.0005589,120]
[320787606,1711555898286,-1661.29,0.0005589,120]
[320787607,1711555898297,-3408.52,0.0005589,120]
[320787608,1711555898307,-1608.7,0.0005589,120]
[320787609,1711555898316,-1509.47,0.0005589,120]
[320787610,1711555898326,-3655.31,0.0005589,120]
[320787611,1711555898336,-4663.33,0.0005589,120]
[320787612,1711555898345,-975.3,0.0005589,120]
[320787613,1711555898354,-608.93,0.0005589,120]
[320787614,1711555898364,-1974.63,0.0005589,120]
[320787615,1711555898373,-10765.87,0.0005589,120]
[320787616,1711555898383,-951.26,0.0005589,120]
[320787617,1711555898393,-3909.78,0.0005589,120]
[320787618,1711555898402,-2649.69,0.0005589,120]
[320787619,1711555898411,-1021.43,0.0005589,120]
[320787620,1711555898421,-1204.25,0.0005589,120]
[320787621,1711555898430,-2113.78,0.0005589,120]
[320787622,1711555898439,-3079.13,0.0005589,120]
[320787623,1711555898449,-509.78,0.0005589,120]
[320787624,1711555898458,-500.0,0.0005589,120]
[320787625,1711555898468,-15879.71,0.0005589,120]
[320787626,1711555898478,-770.92,0.0005589,120]
[320787627,1711555898487,-5347.94,0.0005589,120]
[320787628,1711555898498,-2345.3,0.0005589,120]
[320787629,1711555898509,-500.0,0.0005589,120]
[320787630,1711555898518,-8071.86,0.0005589,120]
[320787631,1711555898528,-2855.54,0.0005589,120]
[320787632,1711555898538,-500.0,0.0005589,120]
[320787633,1711555898547,-1888.04,0.0005589,120]
[320787634,1711555898556,-392.14,0.0005589,120]
[320787635,1711555898567,-2108.72,0.0005589,120]
[320787636,1711555898576,-989.07,0.0005589,120]
[320787637,1711555898586,-1550.55,0.0005589,120]
[320787638,1711555898595,-13927.0,0.0005589,120]
[320787639,1711555898604,-1603.31,0.0005589,120]
[320787640,1711555898614,-1762.3,0.0005589,120]
[320787641,1711555898624,-10720.57,0.0005589,120]
[320787642,1711555898633,-500.0,0.0005589,120]
[320787643,1711555898642,-500.0,0.0005589,120]
[320787644,1711555898651,-3734.86,0.0005589,120]
[320787645,1711555898661,-500.0,0.0005589,120]
[320787646,1711555898858,-12451.76,0.0005589,120]
[320787647,1711555898869,-1116.58,0.0005589,120]
[320787648,1711555898879,-3252.39,0.0005589,120]
[320787649,1711555898889,-4938.81,0.0005589,120]
[320787650,1711555898900,-2206.47,0.0005589,120]
[320787651,1711555898911,-500.0,0.0005589,120]
[320787652,1711555898921,-2668.03,0.0005589,120]
[320787653,1711555898932,-2001.18,0.0005589,120]
[320787654,1711555898942,-9849.31,0.0005589,120]
[320787655,1711555898952,-4956.45,0.0005589,120]
[320787656,1711555898961,-2986.85,0.0005589,120]
[320787657,1711555898971,-3065.59,0.0005589,120]
[320787658,1711555898981,-500.0,0.0005589,120]
[320787659,1711555898990,-531.56,0.0005589,120]
[320787660,1711555899005,-2197.12,0.0005589,120]
[320787661,1711555899015,-963.05,0.0005589,120]
[320787662,1711555899025,-2275.29,0.0005589,120]
[320787663,1711555899034,-610.07,0.0005589,120]
[320787664,1711555899044,-193.81,0.0005589,120]
[320787665,1711555899054,-6100.22,0.0005589,120]
[320787666,1711555899063,-1765.05,0.0005589,120]
[320787667,1711555899073,-3526.44,0.0005589,120]
[320787668,1711555899083,-876.17,0.0005589,120]
[320787669,1711555899092,-500.0,0.0005589,120]
[320787670,1711555899102,-500.0,0.0005589,120]
[320787671,1711555899112,-538.57,0.0005589,120]
[320787672,1711555899126,-3223.1,0.0005589,120]
[320787673,1711555899135,-37831.55,0.0005589,120]
[320787674,1711555899145,-1923.39,0.0005589,120]
[320787675,1711555899155,-3984.46,0.0005589,120]
[320787676,1711555899166,-2049.23,0.0005589,120]
[320787677,1711555899176,-500.0,0.0005589,120]
[320787678,1711555899186,-908.28,0.0005589,120]
[320787679,1711555899196,-1003.99,0.0005589,120]
[320787680,1711555899206,-1881.27,0.0005589,120]
[320787681,1711555899216,-560.17,0.0005589,120]
[320787682,1711555899226,-1126.67,0.0005589,120]
[320787683,1711555899236,-982.68,0.0005589,120]
[320787684,1711555899249,-3977.93,0.0005589,120]
[320787685,1711555899259,-4201.13,0.0005589,120]
[320787686,1711555899269,-1477.02,0.0005589,120]
[320787687,1711555899278,-759.9,0.0005589,120]
[320787688,1711555899288,-500.0,0.0005589,120]
[320787689,1711555899299,-1752.93,0.0005589,120]
[320787690,1711555899309,-2264.79,0.0005589,120]
[320787691,1711555899320,-500.0,0.0005589,120]
[320787692,1711555899332,-1691.32,0.0005589,120]
[320787693,1711555899342,-980.57,0.0005589,120]
[320787694,1711555899352,-615.02,0.0005589,120]
[320787695,1711555899361,-4059.54,0.0005589,120]
[320787696,1711555899371,-667.42,0.0005589,120]
[320787697,1711555899381,-1684.5,0.0005589,120]
[320787698,1711555899391,-783.93,0.0005589,120]
[320787699,1711555899401,-1889.11,0.0005589,120]
[320787700,1711555899411,-1200.63,0.0005589,120]
[320787701,1711555899422,-1686.38,0.0005589,120]
[320787702,1711555899432,-500.0,0.0005589,120]
[320787703,1711555899443,-2698.4,0.0005589,120]
[320787704,1711555899454,-776.98,0.0005589,120]
[320787705,1711555899464,-11859.21,0.0005589,21]
[320787706,1711555899474,-4442.43,0.0005589,120]
[320787707,1711555899484,-3457.11,0.0005589,120]
[320787708,1711555899501,-500.0,0.0005589,120]
[320787709,1711555899511,-500.0,0.0005589,120]
[320787710,1711555899521,-63446.19027185,0.0005589,120]
[320787711,1711555899530,-700.0,0.000559,20]
[320787712,1711555899539,-156.92096202,0.00055945,120]
[320787713,1711555899548,-154.96706065,0.00055953,120]
[320787714,1711555899557,-330.1,0.00055979,7]
[320787715,1711555899566,-500.0,0.00055979,7]
[320787716,1711555899576,-500.0,0.00055979,7]
[320787717,1711555899586,-500.0,0.00055979,7]
[320787718,1711555899597,-500.0,0.00055979,7]
[320787719,1711555899606,-500.0,0.00055979,7]
[320787720,1711555899616,-500.0,0.00055979,7]
[320787721,1711555899625,-500.0,0.00055979,7]
[320787722,1711555899635,-500.0,0.00055979,7]
[320787723,1711555899645,-500.0,0.00055979,7]
[320787724,1711555899655,-500.0,0.00055979,7]
[320787725,1711555899664,-500.0,0.00055979,7]
[320787726,1711555899674,-500.0,0.00055979,7]
[320787727,1711555899683,-500.0,0.00055979,7]
[320787728,1711555899694,-500.0,0.00055979,7]
[320787729,1711555899703,-500.0,0.00055979,7]
[320787730,1711555899714,-500.0,0.00055979,7]
[320787731,1711555899723,-500.0,0.00055979,7]
[320787732,1711555899733,-500.0,0.00055979,7]
[320787733,1711555899746,-500.0,0.00055979,7]
[320787734,1711555899757,-500.0,0.00055979,7]
[320787735,1711555899767,-500.0,0.00055979,7]
[320787736,1711555899776,-500.0,0.00055979,7]
[320787737,1711555899786,-500.0,0.00055979,7]
[320787738,1711555899796,-500.0,0.00055979,7]
[320787739,1711555899806,-500.0,0.00055979,7]
[320787740,1711555899815,-500.0,0.00055979,7]
[320787741,1711555899825,-500.0,0.00055979,7]
[320787742,1711555899835,-500.0,0.00055979,7]
[320787743,1711555899845,-500.0,0.00055979,7]
[320787744,1711555899855,-500.0,0.00055979,7]
[320787745,1711555899865,-500.0,0.00055979,7]
[320787746,1711555899875,-500.0,0.00055979,7]
[320787747,1711555899885,-500.0,0.00055979,7]
[320787748,1711555899895,-500.0,0.00055979,7]
[320787749,1711555899906,-500.0,0.00055979,7]
[320787750,1711555899917,-500.0,0.00055979,7]
[320787751,1711555899927,-500.0,0.00055979,7]
[320787752,1711555899936,-500.0,0.00055979,7]
[320787753,1711555899947,-500.0,0.00055979,7]
[320787754,1711555899956,-500.0,0.00055979,7]
[320787755,1711555899966,-500.0,0.00055979,7]
[320787756,1711555899975,-500.0,0.00055979,7]
[320787757,1711555899985,-500.0,0.00055979,7]
[320787758,1711555899997,-500.0,0.00055979,7]
[320787759,1711555900009,-500.0,0.00055979,7]
[320787760,1711555900019,-500.0,0.00055979,7]
[320787761,1711555900028,-500.0,0.00055979,7]
[320787762,1711555900038,-500.0,0.00055979,7]
[320787763,1711555900047,-500.0,0.00055979,7]
[320787764,1711555900057,-500.0,0.00055979,7]
[320787765,1711555900066,-500.0,0.00055979,7]
[320787766,1711555900076,-500.0,0.00055979,7]
[320787767,1711555900085,-500.0,0.00055979,7]
[320787768,1711555900095,-500.0,0.00055979,7]
[320787769,1711555900104,-500.0,0.00055979,7]
[320787770,1711555900114,-500.0,0.00055979,7]
[320787771,1711555900134,-500.0,0.00055979,7]
[320787772,1711555900146,-500.0,0.00055979,7]
[320787773,1711555900156,-500.0,0.00055979,7]
[320787774,1711555900166,-500.0,0.00055979,7]
[320787775,1711555900176,-500.0,0.00055979,7]
[320787776,1711555900185,-500.0,0.00055979,7]
[320787777,1711555900194,-500.0,0.00055979,7]
[320787778,1711555900204,-500.0,0.00055979,7]
[320787779,1711555900216,-500.0,0.00055979,7]
[320787780,1711555900225,-512.79,0.00055979,7]
[320787781,1711555900235,-500.0,0.00055979,7]
[320787782,1711555900250,-500.0,0.00055979,7]
[320787783,1711555900259,-500.0,0.00055979,7]
[320787784,1711555900269,-500.0,0.00055979,7]
[320787785,1711555900279,-500.0,0.00055979,7]
[320787786,1711555900290,-500.0,0.00055979,7]
[320787787,1711555900300,-500.0,0.00055979,7]
[320787788,1711555900310,-500.0,0.00055979,7]
[320787789,1711555900319,-500.0,0.00055979,7]
[320787790,1711555900329,-500.0,0.00055979,7]
[320787791,1711555900338,-500.0,0.00055979,7]
[320787792,1711555900348,-500.0,0.00055979,7]
[320787793,1711555900357,-500.0,0.00055979,7]
[320787794,1711555900367,-500.0,0.00055979,7]
[320787795,1711555900376,-500.0,0.00055979,7]
[320787796,1711555900386,-500.0,0.00055979,7]
[320787797,1711555900395,-500.0,0.00055979,7]
[320787798,1711555900404,-500.0,0.00055979,7]
[320787799,1711555900413,-500.0,0.00055979,7]
[320787800,1711555900423,-500.0,0.00055979,7]
[320787801,1711555900433,-500.0,0.00055979,7]
[320787802,1711555900443,-500.0,0.00055979,7]
[320787803,1711555900452,-500.0,0.00055979,7]
[320787804,1711555900462,-500.0,0.00055979,7]
[320787805,1711555900471,-500.0,0.00055979,7]
[320787806,1711555900480,-500.0,0.00055979,7]
[320787807,1711555900489,-500.0,0.00055979,7]
[320787808,1711555900502,-500.0,0.00055979,7]
[320787809,1711555900512,-500.0,0.00055979,7]
[320787810,1711555900521,-500.0,0.00055979,7]
[320787811,1711555900531,-500.0,0.00055979,7]
[320787812,1711555900540,-500.0,0.00055979,7]
[320787813,1711555900550,-500.0,0.00055979,7]
[320787814,1711555900559,-500.0,0.00055979,7]
[320787815,1711555900568,-500.0,0.00055979,7]
[320787816,1711555900578,-500.0,0.00055979,7]
[320787817,1711555900587,-500.0,0.00055979,7]
[320787818,1711555900597,-500.0,0.00055979,7]
[320787819,1711555900606,-500.0,0.00055979,7]
[320787820,1711555900615,-501.29,0.00055979,7]
[320787821,1711555900625,-500.0,0.00055979,7]
[320787822,1711555900634,-500.0,0.00055979,7]
[320787823,1711555900644,-500.0,0.00055979,7]
[320787824,1711555900654,-500.0,0.00055979,7]
[320787825,1711555900663,-500.0,0.00055979,7]
[320787826,1711555900673,-500.0,0.00055979,7]
[320787827,1711555900683,-496.69,0.00055979,7]
[320787828,1711555900692,-500.0,0.00055979,7]
[320787829,1711555900702,-500.0,0.00055979,7]
[320787830,1711555900711,-500.0,0.00055979,7]
[320787831,1711555900721,-500.0,0.00055979,7]
[320787832,1711555900731,-190.5,0.0005598,15]
[320787833,1711555900740,-575.0,0.0005598,15]
[320787834,1711555900752,-452.0,0.0005598,15]
[320787835,1711555900762,-1932.5,0.0005598,15]
[320787836,1711555900772,-190.0,0.0005599,15]
[320787837,1711555900782,-571.0,0.0005599,15]
[320787838,1711555900791,-446.0,0.0005599,15]
[320787839,1711555900801,-1926.0,0.0005599,15]
[320787840,1711555900810,-500.0,0.00055998,120]
[320787841,1711555900820,-2000.0,0.00056,30]
[320787842,1711555900829,-150.0,0.00056,60]
[320787843,1711555900839,-5000.0,0.00056,120]
[320787844,1711555900849,-152.7276918,0.00056004,120]
[320787845,1711555900859,-158.61463628,0.00056005,120]
[320787846,1711555900868,-150.67160229,0.00056034,120]
[320787847,1711555900878,-361.35881735,0.00056043,2]
[320787848,1711555900887,-155.41503158,0.00056055,120]
[320787849,1711555900897,-150.62124202,0.00056069,60]
[320787850,1711555900907,-365.55129059,0.00056072,120]
[320787851,1711555900916,-161.997484,0.00056098,30]
[320787852,1711555900926,-594.576621,0.00056098,30]
[320787853,1711555900936,-1243.808336,0.00056098,30]
[320787854,1711555900945,-241.07726508,0.00056102,106]
[320787855,1711555900955,-584.0,0.00056137,120]
[320787856,1711555900964,-200.0,0.00056152,120]
[320787857,1711555900974,-800.0,0.00056152,120]
[320787858,1711555900983,-500.0,0.00056152,120]
[320787859,1711555900993,-200.0,0.00056152,120]
[320787860,1711555901005,-1400.0,0.00056154,120]
[320787861,1711555901017,-251.41097012,0.00056163,90]
[320787862,1711555901029,-1000.0,0.00056163,90]
[320787863,1711555901039,-8750.3197693,0.00056163,30]
[320787864,1711555901048,-500.0,0.00056164,120]
[320787865,1711555901058,-1174.99452343,0.00056164,120]
[320787866,1711555901067,-2000.0,0.00056164,120]
[320787867,1711555901076,-2000.0,0.00056164,120]
[320787868,1711555901086,-2000.0,0.00056164,120]
[320787869,1711555901095,-2000.0,0.00056164,120]
[320787870,1711555901104,-2000.0,0.00056164,120]
[320787871,1711555901114,-2000.0,0.00056164,120]
[320787872,1711555901124,-500.0,0.00056164,120]
[320787873,1711555901135,-500.0,0.00056164,120]
[320787874,1711555901145,-500.0,0.00056164,120]
[320787875,1711555901155,-500.0,0.00056164,120]
[320787876,1711555901166,-223.61846241,0.00056164,120]
[320787877,1711555901175,-524.06,0.00056164,120]
[320787878,1711555901185,-500.0,0.00056164,120]
[320787879,1711555901195,-500.0,0.00056164,120]
[320787880,1711555901204,-500.0,0.00056164,120]
[320787881,1711555901216,-500.0,0.00056164,120]
[320787882,1711555901226,-500.0,0.00056164,120]
[320787883,1711555901236,-729.64,0.00056164,120]
[320787884,1711555901245,-500.0,0.00056164,120]
[320787885,1711555901258,-500.0,0.00056164,120]